[Event "Titled Tuesday Blitz May 30 Early 2023"]
[White "Marra, Eduardo da Costa"]
[Black "Estrada Nieto, Julian"]
[WhiteFideId "2106990"]
[BlackFideId "5101018"]
[WhiteElo "2252"]
[BlackElo "2161"]
[Result "1-0"]
[Round "10"]
[TimeControl "180+2"]
[Date "2023.05.30"]
[WhiteClock "0:00:59"]
[BlackClock "0:00:00"]

1. d4 {[%clk 0:03:00]}  d5 {[%clk 0:02:57]} 2. Nc3 {[%clk 0:03:01]}  Nf6 {[%clk 0:02:56]} 3. Bf4 {[%clk 0:03:01]}  c6 {[%clk 0:02:57]} 4. Nf3 {[%clk 0:03:01]}  Bf5 {[%clk 0:02:56]} 5. e3 {[%clk 0:03:00]}  e6 {[%clk 0:02:56]} 6. Ne5 {[%clk 0:03:00]}  h6 {[%clk 0:02:34]} 7. a3 {[%clk 0:02:55]}  Nbd7 {[%clk 0:02:30]} 8. Bd3 {[%clk 0:02:55]}  Bxd3 {[%clk 0:02:28]} 9. cxd3 {[%clk 0:02:55]}  Be7 {[%clk 0:02:24]} 10. O-O {[%clk 0:02:54]}  O-O {[%clk 0:02:23]} 11. h3 {[%clk 0:02:54]}  Nxe5 {[%clk 0:02:14]} 12. dxe5 {[%clk 0:02:53]}  Nd7 {[%clk 0:02:13]} 13. e4 {[%clk 0:02:46]}  d4 {[%clk 0:01:39]} 14. Ne2 {[%clk 0:02:43]}  c5 {[%clk 0:01:39]} 15. Bh2 {[%clk 0:02:40]}  f6 {[%clk 0:01:31]} 16. exf6 {[%clk 0:02:38]}  Nxf6 {[%clk 0:01:30]} 17. Qb3 {[%clk 0:02:36]}  Qd7 {[%clk 0:01:29]} 18. Nf4 {[%clk 0:02:36]}  Kf7 {[%clk 0:01:26]} 19. Rfe1 {[%clk 0:02:23]}  g5 {[%clk 0:01:25]} 20. Ne2 {[%clk 0:02:23]}  a6 {[%clk 0:01:08]} 21. f4 {[%clk 0:02:21]}  Qb5 {[%clk 0:01:03]} 22. Qc2 {[%clk 0:02:18]}  g4 {[%clk 0:00:38]} 23. Ng3 {[%clk 0:01:49]}  gxh3 {[%clk 0:00:36]} 24. gxh3 {[%clk 0:01:50]}  Rg8 {[%clk 0:00:36]} 25. Kh1 {[%clk 0:01:51]}  Qd7 {[%clk 0:00:23]} 26. f5 {[%clk 0:01:47]}  Rg5 {[%clk 0:00:16]} 27. Rf1 {[%clk 0:01:38]}  Rag8 {[%clk 0:00:14]} 28. Rf3 {[%clk 0:01:39]}  Bd6 {[%clk 0:00:10]} 29. fxe6+ {[%clk 0:01:24]}  Qxe6 {[%clk 0:00:10]} 30. Nf5 {[%clk 0:01:16]}  Bxh2 {[%clk 0:00:08]} 31. Qxh2 {[%clk 0:01:17]}  Rg2 {[%clk 0:00:07]} 32. Qc7+ {[%clk 0:01:15]}  Nd7 {[%clk 0:00:06]} 33. Nxd4+ {[%clk 0:01:13]}  Ke7 {[%clk 0:00:05]} 34. Nxe6 {[%clk 0:01:13]}  Kxe6 {[%clk 0:00:05]} 35. Raf1 {[%clk 0:01:11]}  Re2 {[%clk 0:00:03]} 36. R3f2 {[%clk 0:01:06]}  Re3 {[%clk 0:00:03]} 37. Rf3 {[%clk 0:01:04]}  Re2 {[%clk 0:00:03]} 38. R1f2 {[%clk 0:01:05]}  Re1+ {[%clk 0:00:03]} 39. Kh2 {[%clk 0:01:06]}  Rgg1 {[%clk 0:00:03]} 40. Qxb7 {[%clk 0:01:00]}  h5 {[%clk 0:00:01]} 41. Qd5+ {[%clk 0:00:59]}  Ke7 {[%clk 0:00:00]} 42. Rf7+ {[%clk 0:00:59]} 1-0


[Site "https://www.chess.com"]

[Event "Titled Tuesday Blitz May 30 Early 2023"]
[White "Sousa, Andre Ventura"]
[Black "FunnyDuck66"]
[WhiteFideId "1917617"]
[WhiteElo "2333"]
[BlackElo "2373"]
[Result "0-1"]
[Round "10"]
[TimeControl "180+2"]
[Date "2023.05.30"]
[WhiteClock "0:01:54"]
[BlackClock "0:01:50"]

1. e4 {[%clk 0:03:00]}  c6 {[%clk 0:02:57]} 2. d4 {[%clk 0:03:00]}  d5 {[%clk 0:02:55]} 3. Nd2 {[%clk 0:03:01]}  dxe4 {[%clk 0:02:53]} 4. Nxe4 {[%clk 0:03:02]}  Nf6 {[%clk 0:02:53]} 5. Nxf6+ {[%clk 0:03:01]}  exf6 {[%clk 0:02:54]} 6. Be3 {[%clk 0:03:02]}  Bd6 {[%clk 0:02:52]} 7. Bd3 {[%clk 0:03:00]}  Na6 {[%clk 0:02:52]} 8. a3 {[%clk 0:02:58]}  Nc7 {[%clk 0:02:52]} 9. c4 {[%clk 0:02:55]}  Be6 {[%clk 0:02:49]} 10. Ne2 {[%clk 0:02:55]}  O-O {[%clk 0:02:49]} 11. Qc2 {[%clk 0:02:55]}  g6 {[%clk 0:02:48]} 12. h4 {[%clk 0:02:54]}  f5 {[%clk 0:02:37]} 13. h5 {[%clk 0:02:53]}  b5 {[%clk 0:02:25]} 14. b3 {[%clk 0:02:34]}  a5 {[%clk 0:02:22]} 15. hxg6 {[%clk 0:02:32]}  fxg6 {[%clk 0:02:21]} 16. Nf4 {[%clk 0:02:25]}  Bxf4 {[%clk 0:02:06]} 17. Bxf4 {[%clk 0:02:26]}  Qxd4 {[%clk 0:02:06]} 18. Qc1 {[%clk 0:02:06]}  Qxd3 {[%clk 0:02:01]} 19. Bxc7 {[%clk 0:01:54]}  Bxc4 {[%clk 0:01:50]} 0-1


[Site "https://www.chess.com"]

[Event "Titled Tuesday Blitz May 30 Early 2023"]
[White "Gontcharov, Vladislav"]
[Black "Sovetbekova, Nurai"]
[WhiteFideId "4123492"]
[BlackFideId "13801910"]
[WhiteElo "2420"]
[BlackElo "1857"]
[Result "1-0"]
[Round "10"]
[TimeControl "180+2"]
[Date "2023.05.30"]
[WhiteClock "0:00:19"]
[BlackClock "0:00:00"]

1. d4 {[%clk 0:03:00]}  Nf6 {[%clk 0:02:59]} 2. c4 {[%clk 0:03:00]}  e6 {[%clk 0:02:59]} 3. Nc3 {[%clk 0:03:00]}  Bb4 {[%clk 0:02:58]} 4. e3 {[%clk 0:03:00]}  O-O {[%clk 0:02:54]} 5. Bd3 {[%clk 0:03:00]}  d5 {[%clk 0:02:53]} 6. Nf3 {[%clk 0:02:58]}  b6 {[%clk 0:02:52]} 7. O-O {[%clk 0:02:49]}  Bb7 {[%clk 0:02:51]} 8. a3 {[%clk 0:02:49]}  Be7 {[%clk 0:02:47]} 9. b4 {[%clk 0:02:49]}  c5 {[%clk 0:02:44]} 10. dxc5 {[%clk 0:02:32]}  bxc5 {[%clk 0:02:44]} 11. b5 {[%clk 0:02:32]}  Nbd7 {[%clk 0:02:39]} 12. a4 {[%clk 0:02:20]}  dxc4 {[%clk 0:02:33]} 13. Bxc4 {[%clk 0:02:20]}  Nb6 {[%clk 0:02:33]} 14. Be2 {[%clk 0:02:17]}  Nbd5 {[%clk 0:02:24]} 15. Bb2 {[%clk 0:02:16]}  Qa5 {[%clk 0:02:23]} 16. Qc2 {[%clk 0:02:00]}  Rfd8 {[%clk 0:02:17]} 17. Rfd1 {[%clk 0:01:56]}  Rac8 {[%clk 0:01:57]} 18. Ng5 {[%clk 0:01:38]}  Nb4 {[%clk 0:01:29]} 19. Qb3 {[%clk 0:01:34]}  h6 {[%clk 0:01:28]} 20. Nxe6 {[%clk 0:01:16]}  fxe6 {[%clk 0:01:19]} 21. Qxe6+ {[%clk 0:01:16]}  Kh8 {[%clk 0:01:07]} 22. Qxe7 {[%clk 0:01:13]}  Qb6 {[%clk 0:00:56]} 23. a5 {[%clk 0:01:03]}  Rxd1+ {[%clk 0:00:50]} 24. Rxd1 {[%clk 0:00:59]}  Qc7 {[%clk 0:00:48]} 25. Qxc7 {[%clk 0:00:57]}  Rxc7 {[%clk 0:00:48]} 26. Rd8+ {[%clk 0:00:56]}  Kh7 {[%clk 0:00:47]} 27. Bc4 {[%clk 0:00:51]}  Rd7 {[%clk 0:00:34]} 28. Rxd7 {[%clk 0:00:48]}  Nxd7 {[%clk 0:00:34]} 29. f4 {[%clk 0:00:42]}  Kg6 {[%clk 0:00:22]} 30. Kf2 {[%clk 0:00:42]}  Kf5 {[%clk 0:00:18]} 31. Ne2 {[%clk 0:00:38]}  g5 {[%clk 0:00:15]} 32. Ng3+ {[%clk 0:00:38]}  Kg6 {[%clk 0:00:13]} 33. Bc3 {[%clk 0:00:26]}  gxf4 {[%clk 0:00:11]} 34. exf4 {[%clk 0:00:26]}  Nd5 {[%clk 0:00:10]} 35. Bd2 {[%clk 0:00:25]}  N7f6 {[%clk 0:00:09]} 36. Bd3+ {[%clk 0:00:24]}  Kg7 {[%clk 0:00:08]} 37. Nf5+ {[%clk 0:00:19]}  Kf8 {[%clk 0:00:07]} 38. Nxh6 {[%clk 0:00:19]}  Nc7 {[%clk 0:00:00]} 39. Nf5 {[%clk 0:00:19]} 1-0


[Site "https://www.chess.com"]

[Event "Titled Tuesday Blitz May 30 Early 2023"]
[White "Senft, Sean"]
[Black "Vlassov, Nikolai"]
[WhiteFideId "2044960"]
[BlackFideId "4103360"]
[WhiteElo "1989"]
[BlackElo "2324"]
[Result "0-1"]
[Round "10"]
[TimeControl "180+2"]
[Date "2023.05.30"]
[WhiteClock "0:00:52"]
[BlackClock "0:00:17"]

1. d4 {[%clk 0:03:00]}  Nf6 {[%clk 0:02:59]} 2. c4 {[%clk 0:03:01]}  Nc6 {[%clk 0:02:58]} 3. Nc3 {[%clk 0:03:00]}  e5 {[%clk 0:02:58]} 4. Nf3 {[%clk 0:03:01]}  exd4 {[%clk 0:02:58]} 5. Nxd4 {[%clk 0:03:01]}  Bb4 {[%clk 0:02:58]} 6. e3 {[%clk 0:02:59]}  Bxc3+ {[%clk 0:02:57]} 7. bxc3 {[%clk 0:02:59]}  O-O {[%clk 0:02:57]} 8. Bd3 {[%clk 0:02:59]}  Ne5 {[%clk 0:02:53]} 9. O-O {[%clk 0:02:58]}  Nxd3 {[%clk 0:02:53]} 10. Qxd3 {[%clk 0:02:59]}  d6 {[%clk 0:02:49]} 11. Ba3 {[%clk 0:02:56]}  Re8 {[%clk 0:02:48]} 12. c5 {[%clk 0:02:53]}  dxc5 {[%clk 0:02:45]} 13. Bxc5 {[%clk 0:02:52]}  b6 {[%clk 0:02:46]} 14. Ba3 {[%clk 0:02:43]}  c5 {[%clk 0:02:45]} 15. Rfd1 {[%clk 0:02:32]}  cxd4 {[%clk 0:02:45]} 16. cxd4 {[%clk 0:02:29]}  Bb7 {[%clk 0:02:44]} 17. f3 {[%clk 0:02:29]}  Rc8 {[%clk 0:02:41]} 18. e4 {[%clk 0:02:28]}  Nh5 {[%clk 0:02:41]} 19. g3 {[%clk 0:02:25]}  f5 {[%clk 0:02:35]} 20. d5 {[%clk 0:02:20]}  fxe4 {[%clk 0:02:30]} 21. fxe4 {[%clk 0:02:21]}  Nf6 {[%clk 0:02:29]} 22. Re1 {[%clk 0:02:17]}  Qd7 {[%clk 0:02:22]} 23. Bb2 {[%clk 0:02:16]}  Ng4 {[%clk 0:02:13]} 24. Qd4 {[%clk 0:02:12]}  Ne5 {[%clk 0:02:12]} 25. Rf1 {[%clk 0:02:09]}  Rc4 {[%clk 0:02:06]} 26. Qe3 {[%clk 0:02:02]}  Rc2 {[%clk 0:01:35]} 27. Bxe5 {[%clk 0:01:49]}  Rxe5 {[%clk 0:01:24]} 28. Qf4 {[%clk 0:01:48]}  Re8 {[%clk 0:01:18]} 29. Rac1 {[%clk 0:01:48]}  Rxc1 {[%clk 0:01:14]} 30. Rxc1 {[%clk 0:01:48]}  Rc8 {[%clk 0:00:56]} 31. Rxc8+ {[%clk 0:01:48]}  Qxc8 {[%clk 0:00:53]} 32. Qd6 {[%clk 0:01:41]}  Qc5+ {[%clk 0:00:38]} 33. Qxc5 {[%clk 0:01:39]}  bxc5 {[%clk 0:00:39]} 34. Kf2 {[%clk 0:01:21]}  Kf7 {[%clk 0:00:40]} 35. Ke3 {[%clk 0:01:12]}  Kf6 {[%clk 0:00:40]} 36. Kd3 {[%clk 0:01:02]}  Ba6+ {[%clk 0:00:36]} 37. Kc3 {[%clk 0:01:01]}  Ke5 {[%clk 0:00:37]} 38. a4 {[%clk 0:00:55]}  g5 {[%clk 0:00:36]} 39. h4 {[%clk 0:00:54]}  g4 {[%clk 0:00:30]} 40. Kb3 {[%clk 0:00:54]}  Bd3 {[%clk 0:00:21]} 41. Kc3 {[%clk 0:00:53]}  Bxe4 {[%clk 0:00:21]} 42. Kc4 {[%clk 0:00:53]}  Kd6 {[%clk 0:00:18]} 43. Kb5 {[%clk 0:00:52]}  Bxd5 {[%clk 0:00:17]} 0-1


[Site "https://www.chess.com"]

[Event "Titled Tuesday Blitz May 30 Early 2023"]
[White "Tanmay Jain"]
[Black "vlajkovicS"]
[WhiteFideId "45015481"]
[WhiteElo "2032"]
[BlackElo "2631"]
[Result "1-0"]
[Round "10"]
[TimeControl "180+2"]
[Date "2023.05.30"]
[WhiteClock "0:01:25"]
[BlackClock "0:02:14"]

1. e4 {[%clk 0:02:59]}  e6 {[%clk 0:02:59]} 2. Nf3 {[%clk 0:02:59]}  a6 {[%clk 0:03:00]} 3. g3 {[%clk 0:02:59]}  b5 {[%clk 0:03:00]} 4. Bg2 {[%clk 0:02:59]}  Bb7 {[%clk 0:03:01]} 5. d3 {[%clk 0:02:58]}  d5 {[%clk 0:03:01]} 6. O-O {[%clk 0:02:56]}  dxe4 {[%clk 0:03:01]} 7. Nfd2 {[%clk 0:02:56]}  Nf6 {[%clk 0:03:01]} 8. dxe4 {[%clk 0:02:54]}  e5 {[%clk 0:03:01]} 9. Qe2 {[%clk 0:02:53]}  Nc6 {[%clk 0:03:00]} 10. c3 {[%clk 0:02:52]}  h5 {[%clk 0:02:59]} 11. Nf3 {[%clk 0:02:51]}  Bd6 {[%clk 0:02:48]} 12. Bg5 {[%clk 0:02:49]}  Ne7 {[%clk 0:02:49]} 13. Nbd2 {[%clk 0:02:46]}  Ng4 {[%clk 0:02:44]} 14. h3 {[%clk 0:02:26]}  Nh6 {[%clk 0:02:42]} 15. Rad1 {[%clk 0:02:24]}  f6 {[%clk 0:02:41]} 16. Be3 {[%clk 0:02:24]}  g5 {[%clk 0:02:42]} 17. c4 {[%clk 0:02:03]}  Qd7 {[%clk 0:02:38]} 18. c5 {[%clk 0:02:01]}  g4 {[%clk 0:02:38]} 19. hxg4 {[%clk 0:01:57]}  hxg4 {[%clk 0:02:39]} 20. Nh4 {[%clk 0:01:57]}  f5 {[%clk 0:02:37]} 21. cxd6 {[%clk 0:01:56]}  cxd6 {[%clk 0:02:37]} 22. exf5 {[%clk 0:01:53]}  Bxg2 {[%clk 0:02:37]} 23. Kxg2 {[%clk 0:01:53]}  Nhxf5 {[%clk 0:02:36]} 24. Nxf5 {[%clk 0:01:47]}  Nxf5 {[%clk 0:02:36]} 25. Ne4 {[%clk 0:01:28]}  Qh7 {[%clk 0:02:14]} 26. Nf6+ {[%clk 0:01:25]} 1-0


[Site "https://www.chess.com"]

[Event "Titled Tuesday Blitz May 30 Early 2023"]
[White "Girya, Olga"]
[Black "Zaitsev, Alexander"]
[WhiteFideId "4195752"]
[BlackFideId "4164490"]
[WhiteElo "2263"]
[BlackElo "2373"]
[Result "1-0"]
[Round "10"]
[TimeControl "180+2"]
[Date "2023.05.30"]
[WhiteClock "0:00:04"]
[BlackClock "0:00:00"]

1. d4 {[%clk 0:03:00]}  Nf6 {[%clk 0:03:00]} 2. Nf3 {[%clk 0:03:00]}  e6 {[%clk 0:03:00]} 3. c4 {[%clk 0:03:00]}  Bb4+ {[%clk 0:03:00]} 4. Bd2 {[%clk 0:03:00]}  c5 {[%clk 0:03:01]} 5. Bxb4 {[%clk 0:02:58]}  cxb4 {[%clk 0:03:02]} 6. g3 {[%clk 0:02:53]}  b6 {[%clk 0:03:02]} 7. Bg2 {[%clk 0:02:53]}  Bb7 {[%clk 0:03:02]} 8. O-O {[%clk 0:02:53]}  O-O {[%clk 0:03:01]} 9. Qd3 {[%clk 0:02:52]}  a5 {[%clk 0:03:01]} 10. Rd1 {[%clk 0:02:51]}  d6 {[%clk 0:02:59]} 11. a3 {[%clk 0:02:50]}  Na6 {[%clk 0:02:58]} 12. Nbd2 {[%clk 0:02:50]}  Qc7 {[%clk 0:02:53]} 13. Ne1 {[%clk 0:02:47]}  e5 {[%clk 0:02:41]} 14. Nc2 {[%clk 0:02:26]}  Bxg2 {[%clk 0:02:38]} 15. Kxg2 {[%clk 0:02:26]}  bxa3 {[%clk 0:02:29]} 16. bxa3 {[%clk 0:02:25]}  Rfe8 {[%clk 0:02:17]} 17. Ne3 {[%clk 0:02:07]}  Qb7+ {[%clk 0:01:47]} 18. Kg1 {[%clk 0:02:06]}  Nc7 {[%clk 0:01:46]} 19. Rab1 {[%clk 0:02:02]}  Ne6 {[%clk 0:01:43]} 20. Nf5 {[%clk 0:01:29]}  Red8 {[%clk 0:01:40]} 21. Nb3 {[%clk 0:01:27]}  Qc7 {[%clk 0:01:28]} 22. d5 {[%clk 0:01:20]}  Nc5 {[%clk 0:01:23]} 23. Nxc5 {[%clk 0:01:20]}  bxc5 {[%clk 0:00:58]} 24. Rb5 {[%clk 0:01:15]}  g6 {[%clk 0:00:55]} 25. Ne3 {[%clk 0:01:09]}  Rdb8 {[%clk 0:00:37]} 26. Rdb1 {[%clk 0:01:07]}  Ne8 {[%clk 0:00:32]} 27. Nd1 {[%clk 0:01:00]}  Qc8 {[%clk 0:00:28]} 28. Nc3 {[%clk 0:00:58]}  Nc7 {[%clk 0:00:28]} 29. Rb6 {[%clk 0:00:51]}  Rxb6 {[%clk 0:00:28]} 30. Rxb6 {[%clk 0:00:51]}  Ra6 {[%clk 0:00:11]} 31. Qb1 {[%clk 0:00:48]}  Qg4 {[%clk 0:00:10]} 32. Rxa6 {[%clk 0:00:35]}  Nxa6 {[%clk 0:00:10]} 33. Qb5 {[%clk 0:00:33]}  Nb4 {[%clk 0:00:05]} 34. axb4 {[%clk 0:00:16]}  axb4 {[%clk 0:00:05]} 35. Nd1 {[%clk 0:00:14]}  Qxe2 {[%clk 0:00:05]} 36. Ne3 {[%clk 0:00:15]}  Qe1+ {[%clk 0:00:02]} 37. Kg2 {[%clk 0:00:15]}  Qd2 {[%clk 0:00:02]} 38. Qb8+ {[%clk 0:00:14]}  Kg7 {[%clk 0:00:02]} 39. Qxd6 {[%clk 0:00:15]}  Qd4 {[%clk 0:00:02]} 40. Qb6 {[%clk 0:00:05]}  b3 {[%clk 0:00:02]} 41. d6 {[%clk 0:00:05]}  b2 {[%clk 0:00:02]} 42. d7 {[%clk 0:00:04]}  Qe4+ {[%clk 0:00:02]} 43. f3 {[%clk 0:00:04]}  b1=Q {[%clk 0:00:01]} 44. Qxb1 {[%clk 0:00:03]}  Qxb1 {[%clk 0:00:02]} 45. d8=Q {[%clk 0:00:03]}  Qb2+ {[%clk 0:00:01]} 46. Kg1 {[%clk 0:00:03]}  Qc1+ {[%clk 0:00:01]} 47. Nf1 {[%clk 0:00:03]}  Qxc4 {[%clk 0:00:01]} 48. Qd2 {[%clk 0:00:03]}  Qb5 {[%clk 0:00:01]} 49. Ne3 {[%clk 0:00:03]}  Qc6 {[%clk 0:00:01]} 50. Kg2 {[%clk 0:00:04]}  c4 {[%clk 0:00:01]} 51. Qd5 {[%clk 0:00:04]}  Qb6 {[%clk 0:00:01]} 52. Qxe5+ {[%clk 0:00:04]}  f6 {[%clk 0:00:00]} 53. Qc3 {[%clk 0:00:04]} 1-0


[Site "https://www.chess.com"]

[Event "Titled Tuesday Blitz May 30 Early 2023"]
[White "Liu, Casper"]
[Black "Terletsky, Oleg"]
[WhiteFideId "1454153"]
[BlackFideId "14116774"]
[WhiteElo "2221"]
[BlackElo "2084"]
[Result "1/2-1/2"]
[Round "10"]
[TimeControl "180+2"]
[Date "2023.05.30"]
[WhiteClock "0:00:34"]
[BlackClock "0:00:10"]

1. e4 {[%clk 0:02:57]}  e5 {[%clk 0:02:59]} 2. d4 {[%clk 0:02:56]}  exd4 {[%clk 0:02:59]} 3. c3 {[%clk 0:02:56]}  d5 {[%clk 0:02:57]} 4. exd5 {[%clk 0:02:54]}  Qxd5 {[%clk 0:02:56]} 5. Nf3 {[%clk 0:02:54]}  Nc6 {[%clk 0:02:51]} 6. cxd4 {[%clk 0:02:52]}  Bg4 {[%clk 0:02:49]} 7. Be2 {[%clk 0:02:52]}  Bb4+ {[%clk 0:02:47]} 8. Nc3 {[%clk 0:02:52]}  Bxf3 {[%clk 0:02:46]} 9. Bxf3 {[%clk 0:02:51]}  Qc4 {[%clk 0:02:47]} 10. Bxc6+ {[%clk 0:02:27]}  bxc6 {[%clk 0:02:48]} 11. Qe2+ {[%clk 0:02:23]}  Qxe2+ {[%clk 0:02:47]} 12. Kxe2 {[%clk 0:02:24]}  O-O-O {[%clk 0:02:41]} 13. Be3 {[%clk 0:02:24]}  Ne7 {[%clk 0:02:40]} 14. Rac1 {[%clk 0:02:23]}  Nf5 {[%clk 0:02:27]} 15. Rhd1 {[%clk 0:02:22]}  Rhe8 {[%clk 0:02:26]} 16. Kf3 {[%clk 0:02:21]}  Rd6 {[%clk 0:01:39]} 17. g4 {[%clk 0:02:01]}  Nxe3 {[%clk 0:01:19]} 18. fxe3 {[%clk 0:02:01]}  Rf6+ {[%clk 0:01:13]} 19. Ke2 {[%clk 0:01:59]}  Rh6 {[%clk 0:01:06]} 20. Rh1 {[%clk 0:01:55]}  Rh3 {[%clk 0:01:06]} 21. Nd1 {[%clk 0:01:53]}  Kb7 {[%clk 0:00:53]} 22. Kf2 {[%clk 0:01:39]}  Bd2 {[%clk 0:00:45]} 23. Kg2 {[%clk 0:01:30]}  Rh6 {[%clk 0:00:26]} 24. Rc4 {[%clk 0:01:06]}  Re4 {[%clk 0:00:17]} 25. Nf2 {[%clk 0:00:46]}  Rxe3 {[%clk 0:00:15]} 26. Rd1 {[%clk 0:00:46]}  Ba5 {[%clk 0:00:13]} 27. b4 {[%clk 0:00:46]}  Bb6 {[%clk 0:00:13]} 28. Rd2 {[%clk 0:00:44]}  Rf6 {[%clk 0:00:11]} 29. Rb2 {[%clk 0:00:34]}  Rf4 {[%clk 0:00:10]} 1/2-1/2


[Site "https://www.chess.com"]

[Event "Titled Tuesday Blitz May 30 Early 2023"]
[White "Melian, Juan Sebastian"]
[Black "Jovic, Stanoje"]
[WhiteFideId "3706575"]
[BlackFideId "905020"]
[WhiteElo "2092"]
[BlackElo "2236"]
[Result "1-0"]
[Round "10"]
[TimeControl "180+2"]
[Date "2023.05.30"]
[WhiteClock "0:00:03"]
[BlackClock "0:00:00"]

1. d4 {[%clk 0:03:00]}  Nf6 {[%clk 0:02:59]} 2. Bg5 {[%clk 0:03:00]}  c5 {[%clk 0:02:58]} 3. e3 {[%clk 0:03:00]}  Qb6 {[%clk 0:02:57]} 4. Nc3 {[%clk 0:02:41]}  Qxb2 {[%clk 0:02:56]} 5. Nb5 {[%clk 0:02:38]}  Qb4+ {[%clk 0:02:52]} 6. c3 {[%clk 0:02:25]}  Qa5 {[%clk 0:02:52]} 7. Qb3 {[%clk 0:02:18]}  a6 {[%clk 0:02:42]} 8. Na3 {[%clk 0:02:04]}  Ne4 {[%clk 0:02:40]} 9. Nc4 {[%clk 0:01:59]}  Qc7 {[%clk 0:02:21]} 10. Bf4 {[%clk 0:01:55]}  d6 {[%clk 0:02:13]} 11. Nb6 {[%clk 0:01:54]}  Ra7 {[%clk 0:02:10]} 12. Bc4 {[%clk 0:01:24]}  e6 {[%clk 0:02:03]} 13. Ne2 {[%clk 0:01:06]}  Be7 {[%clk 0:01:56]} 14. Bd3 {[%clk 0:00:53]}  Nf6 {[%clk 0:01:48]} 15. a4 {[%clk 0:00:43]}  a5 {[%clk 0:01:40]} 16. O-O {[%clk 0:00:42]}  O-O {[%clk 0:01:32]} 17. Rab1 {[%clk 0:00:34]}  e5 {[%clk 0:01:26]} 18. Bg3 {[%clk 0:00:28]}  e4 {[%clk 0:01:21]} 19. Bc4 {[%clk 0:00:23]}  Nbd7 {[%clk 0:01:14]} 20. Nxc8 {[%clk 0:00:10]}  Rxc8 {[%clk 0:01:11]} 21. Bxf7+ {[%clk 0:00:10]}  Kh8 {[%clk 0:01:10]} 22. Be6 {[%clk 0:00:11]}  c4 {[%clk 0:01:08]} 23. Qb5 {[%clk 0:00:11]}  Qc6 {[%clk 0:01:03]} 24. Qf5 {[%clk 0:00:09]}  Rf8 {[%clk 0:00:58]} 25. Rb5 {[%clk 0:00:09]}  g6 {[%clk 0:00:56]} 26. Qh3 {[%clk 0:00:08]}  d5 {[%clk 0:00:54]} 27. Nf4 {[%clk 0:00:07]}  Kg7 {[%clk 0:00:46]} 28. Bxd7 {[%clk 0:00:07]}  Qxd7 {[%clk 0:00:43]} 29. Ne6+ {[%clk 0:00:07]}  Kf7 {[%clk 0:00:38]} 30. Nxf8 {[%clk 0:00:06]}  Qxh3 {[%clk 0:00:38]} 31. gxh3 {[%clk 0:00:06]}  Kxf8 {[%clk 0:00:37]} 32. Rfb1 {[%clk 0:00:07]}  Ba3 {[%clk 0:00:16]} 33. Rxb7 {[%clk 0:00:06]}  Rxb7 {[%clk 0:00:16]} 34. Rxb7 {[%clk 0:00:07]}  Bc1 {[%clk 0:00:16]} 35. Rb5 {[%clk 0:00:03]}  Bd2 {[%clk 0:00:15]} 36. Be5 {[%clk 0:00:04]}  Nd7 {[%clk 0:00:13]} 37. Rxa5 {[%clk 0:00:04]}  Bxc3 {[%clk 0:00:12]} 38. Rxd5 {[%clk 0:00:04]}  Ke7 {[%clk 0:00:12]} 39. Rb5 {[%clk 0:00:03]}  Bd2 {[%clk 0:00:11]} 40. Bf4 {[%clk 0:00:01]}  c3 {[%clk 0:00:11]} 41. Rb7 {[%clk 0:00:02]}  c2 {[%clk 0:00:10]} 42. Rc7 {[%clk 0:00:02]}  c1=Q+ {[%clk 0:00:10]} 43. Rxc1 {[%clk 0:00:03]}  Bxc1 {[%clk 0:00:10]} 44. a5 {[%clk 0:00:04]}  Kd8 {[%clk 0:00:06]} 45. a6 {[%clk 0:00:04]}  Kc8 {[%clk 0:00:07]} 46. Kg2 {[%clk 0:00:03]}  Nb6 {[%clk 0:00:07]} 47. Kg3 {[%clk 0:00:04]}  Nd5 {[%clk 0:00:06]} 48. Kg4 {[%clk 0:00:04]}  Bd2 {[%clk 0:00:05]} 49. Be5 {[%clk 0:00:04]}  Bb4 {[%clk 0:00:05]} 50. Kg5 {[%clk 0:00:04]}  Bf8 {[%clk 0:00:05]} 51. h4 {[%clk 0:00:02]}  Nb4 {[%clk 0:00:05]} 52. Kf4 {[%clk 0:00:03]}  Nxa6 {[%clk 0:00:05]} 53. Kxe4 {[%clk 0:00:03]}  Kd7 {[%clk 0:00:05]} 54. Bf4 {[%clk 0:00:03]}  Nb4 {[%clk 0:00:06]} 55. Kf3 {[%clk 0:00:03]}  Ke6 {[%clk 0:00:06]} 56. e4 {[%clk 0:00:03]}  Kf7 {[%clk 0:00:06]} 57. d5 {[%clk 0:00:03]}  Nc2 {[%clk 0:00:05]} 58. Bg3 {[%clk 0:00:03]}  Nd4+ {[%clk 0:00:05]} 59. Ke3 {[%clk 0:00:03]}  Bc5 {[%clk 0:00:05]} 60. Kd3 {[%clk 0:00:03]}  Nf3 {[%clk 0:00:06]} 61. Ke2 {[%clk 0:00:03]}  Nd4+ {[%clk 0:00:05]} 62. Kd3 {[%clk 0:00:03]}  Nf3 {[%clk 0:00:04]} 63. Kc4 {[%clk 0:00:03]}  Ba7 {[%clk 0:00:03]} 64. e5 {[%clk 0:00:04]}  h6 {[%clk 0:00:02]} 65. Kd3 {[%clk 0:00:03]}  g5 {[%clk 0:00:02]} 66. hxg5 {[%clk 0:00:02]}  hxg5 {[%clk 0:00:03]} 67. Ke4 {[%clk 0:00:03]}  g4 {[%clk 0:00:03]} 68. Kf4 {[%clk 0:00:03]}  Nd2 {[%clk 0:00:02]} 69. Kxg4 {[%clk 0:00:03]}  Ne4 {[%clk 0:00:02]} 70. f4 {[%clk 0:00:03]}  Nc3 {[%clk 0:00:00]} 71. d6 {[%clk 0:00:03]} 1-0


[Site "https://www.chess.com"]